Workbook

Sheet Notes
A1: Total Climatic Impact of Insulation
A3: Introduction
B4: Developed by David White (www.rightenvironments.com) with support from BuildingGreen (www.buildinggreen.com)
B5: More information on the tool can be found here: http://www.buildinggreen.com/live/index.cfm/2011/3/21/Global-Warming-Potential-Insulation-Calculator-polystyrene-eps-xps-gwp
B6: This tool calculates total global warming potential (GWP) of various insulation materials. Total impact is defined as the embodied GWP of the insulation plus GWP of heating energy demand.
B7: It does not consider other important environmental impacts, such as resource depletion, habitat loss, toxicity, eutrophication, acidification, etc; nor does it consider other financial costs.
A9: Use
B10: The tool uses macros. You may need to change your macro security level (under Tools: Options: Security) to Medium to allow the macros to work. Macros do not work with Excel 2008 for Mac.
B11: Enter all required info about the building into the yellow cells. Move the cursor over the red triangles for help notes.
B12: Examine alternative thicknesses and materials that may perform better from a GWP standpoint, within overall project objectives.
B13: The calculation sheets are locked to prevent damage to the formulas, but you can unlock them if you want to examine the formulas or edit them. The password is "unlock"
A15: Method
B16: Heating energy demand is calculated for envelope transmission only. Infiltration is neglected because building air tightness may happen independently of the insulation.
B17: "Whole Assembly R Value" in the graph is Reference R Value plus R value of the insulation graphed.
B18: Note that proper air tightness is very important from the standpoints of durability, health, and energy. The neglect of air tightness by this calculator is not meant to encourage its neglect in construction.
B19: Thermal bridging effects are neglected. Accuracy is acceptable for comparison of options whose insulated layers contain identical, moderate amounts of material no more conductive than wood.
B20: The GWP of materials making up the "Reference" assembly is neglected while their insulating effect considered, because its construction is considered to be based on other design issues.
B21: The reference assembly may be insulated, but for accurate comparison it should only be with a low-GWP insulation.
B22: Each curve's lowest point is the point of minimum impact for that material. Any amount of insulation added past that point increases rather than reduces total impact.
B23: The low point is also the point at which embodied GWP and operational GWP are each half of total.
B24: Note that the low point for a given material always occurs at the same total R-value, for a given climate and heating system, regardless of reference R value.
B25: Embodied energy for extra non-insulating materials required to build highly insulated walls is neglected, but may be important.
A27: Format
B28: Charts are automatically generated but can be scaled and otherwise formatted to your preference, just like an ordinary excel chart.
B29: The worksheets are locked to protect the formulas, and some of the formulas are hidden, but you can unprotect the sheet and unhide the formulas for your own purposes.
A31: Sources and Acknowledgements
B32: All information regarding embodied energy and blowing agents from Harvey, "Net climatic impact of solid foam insulation..." except where otherwise noted.
B33: We gratefully acknowledge Dr. Harvey's generous support of this tool.
B34: Thanks to Mary Bogdan and David Williams of Honeywell for generous support on data for various aspects of HFC-245fa.
B35: Thanks to Terry Brennan, John Straube, and Daniel Bergey for technical guidance.
B36: Special thanks to Paul Eldrenkamp for project genesis & seed funding, Alex Wilson for collaboration & publicity, Cramer Silkworth for Excel mastery, & New Hampshire friends for beta testing.
B37: copyright 2011 by David White. This file may be freely distributed, but never used for profit.

Sheet IP
A1: Total Climatic Impact of Insulation
B4: Inputs
B5: Climate HDD (°Fd) | C5: 6000
B6: Reference R Value | C6: 2
B7: Heating Fuel | C7: Natural Gas
B8: Heating Efficiency/COP | C8: 0.9
B9: Life Span of Insulation (Years) | C9: 50
B10: BA Release Rate | C10: High
B11: Chart Type | C11: R Value
B12: R Value Chart x-axis maxiumum | C12: 60
B13: Thickness Chart x-axis maximum | C13: 10
B14: Chart y-axis maximum | C14: 1.5
B16: Displayed in Graph (mark with "x")
B17: =B45 -> Cellulose | C17: x
B18: Rigid Mineral Wool
B19: Mineral Wool Batt
B20: Fiberglass Batt
B21: Loose Fill Fiberglass
B22: =B50 -> Dense Pack Blown Fiberglass
B23: Fiberboard
B24: EPS type I (1 lb/cf)
B25: EPS type VII (1.25 lb/cf)
B26: EPS type II (1.5 lb/cf)
B27: EPS type IX (2 lb/cf)
B28: Solid PU, n-pentane
B29: XPS, CO2
B30: XPS, HFC-134a
B31: Spray PU, Water/CO2
B32: Spray PU, HFC-245fa
B38: =#REF!&" "&#REF!&" "&B7&" "&B8&" "&B9&" "&B10 -> 
B39: =TEXT(#REF!,"0.00")&" "&TEXT(#REF!,"0,000")&" "&C7&" "&TEXT(C8,"0.00")&" "&TEXT(C9,"00")&" "&C10 -> 
A43: Material Data | C43: =Metric!C44 -> Conductivity | D43: =Metric!D44 -> Mnfr CO2 | E43: =Metric!E44 -> Mnfr CO2 | F43: =Metric!F44 -> BA CO2 | G43: =Metric!G44 -> BA CO2 | H43: =Metric!H44 -> BA GWP | I43: =Metric!I44 -> BA Mass | J43: =Metric!J44 -> Overall | K43: =Metric!K44 -> Total CO2 | L43: =Metric!L44 -> Total CO2 | M43: R-value
C44: =Metric!C45 -> (W/mK) | D44: =Metric!D45 -> (kg/m2RSI) | E44: =Metric!E45 -> (kg/m3) | F44: =Metric!F45 -> (kg/m2RSI) | G44: =Metric!G45 -> (kg/m3) | H44: =Metric!H45 -> - | I44: =Metric!I45 -> (kg/m2RSI) | J44: =Metric!J45 -> Emissions | K44: =Metric!K45 -> (kg/m2RSI) | L44: =Metric!L45 -> (kg/m3) | M44: per inch
B45: =Metric!B46 -> Cellulose | C45: =Metric!C46 -> 0.039 | D45: =E45*C45 -> 0.121718025 | E45: =Metric!E46 -> 3.120975 | F45: 0 | G45: =F45/C45 -> 0 | H45: =Metric!H46 -> 0 | I45: =Metric!I46 -> 0 | J45: 0 | K45: =D45+F45 -> 0.121718025 | L45: =E45+G45 -> 3.120975 | M45: =0.1442/C45 -> 3.697435897
B46: =Metric!B47 -> Rigid Mineral Wool | C46: =Metric!C47 -> 0.037 | D46: =E46*C46 -> 6.5142792 | E46: =Metric!E47 -> 176.0616 | F46: 0 | G46: =F46/C46 -> 0 | H46: =Metric!H47 -> 0 | I46: =Metric!I47 -> 0 | J46: 0 | K46: =D46+F46 -> 6.5142792 | L46: =E46+G46 -> 176.0616 | M46: =0.1442/C46 -> 3.897297297
B47: =Metric!B48 -> Mineral Wool Batt | C47: =Metric!C48 -> 0.035 | D47: 1.297296 | E47: =Metric!E48 -> 37.0656 | F47: 0 | G47: 0 | H47: =Metric!H48 -> 0 | I47: =Metric!I48 -> 0 | J47: 0 | K47: 1.297296 | L47: 37.0656 | M47: 4.12
B48: =Metric!B49 -> Fiberglass Batt | C48: =Metric!C49 -> 0.044 | D48: 0.483999516 | E48: =Metric!E49 -> 10.999989 | F48: 0 | G48: 0 | H48: =Metric!H49 -> 0 | I48: =Metric!I49 -> 0 | J48: 0 | K48: 0.483999516 | L48: 10.999989 | M48: 3.277272727
B49: =Metric!B50 -> Loose Fill Fiberglass | C49: =Metric!C50 -> 0.063 | D49: 0.692999307 | E49: =Metric!E50 -> 10.999989 | F49: 0 | G49: 0 | H49: =Metric!H50 -> 0 | I49: =Metric!I50 -> 0 | J49: 0 | K49: 0.692999307 | L49: 10.999989 | M49: 2.288888889
B50: =Metric!B51 -> Dense Pack Blown Fiberglass | C50: =Metric!C51 -> 0.034 | D50: 1.398855744 | E50: =Metric!E51 -> 41.142816 | F50: 0 | G50: 0 | H50: =Metric!H51 -> 0 | I50: =Metric!I51 -> 0 | J50: 0 | K50: 1.398855744 | L50: 41.142816 | M50: 4.241176471
B51: =Metric!B52 -> Fiberboard | C51: =Metric!C52 -> 0.055 | D51: 11.11147537 | E51: =Metric!E52 -> 202.026825 | F51: 0 | G51: 0 | H51: =Metric!H52 -> 0 | I51: =Metric!I52 -> 0 | J51: 0 | K51: 11.11147537 | L51: 202.026825 | M51: 2.621818182
B52: =Metric!B53 -> EPS type I (1 lb/cf) | C52: =Metric!C53 -> 0.04 | D52: 5.230368 | E52: =Metric!E53 -> 130.7592 | F52: =H52*I52*J52 -> 0.2688 | G52: 6.72 | H52: =Metric!H53 -> 7 | I52: =Metric!I53 -> 0.0384 | J52: 1 | K52: 5.499168 | L52: 137.4792 | M52: 3.605
B53: =Metric!B54 -> EPS type VII (1.25 lb/cf) | C53: =Metric!C54 -> 0.038 | D53: 6.211062 | E53: =Metric!E54 -> 163.449 | F53: =H53*I53*J53 -> 0.2688 | G53: 7.073684211 | H53: =Metric!H54 -> 7 | I53: =Metric!I54 -> 0.0384 | J53: 1 | K53: 6.479862 | L53: 170.5226842 | M53: 3.794736842
B54: =Metric!B55 -> EPS type II (1.5 lb/cf) | C54: =Metric!C55 -> 0.036 | D54: 7.0609968 | E54: =Metric!E55 -> 196.1388 | F54: 0.2688 | G54: 7.466666667 | H54: =Metric!H55 -> 7 | I54: =Metric!I55 -> 0.0384 | J54: 1 | K54: 7.3297968 | L54: 203.6054667 | M54: 4.005555556
B55: =Metric!B56 -> EPS type IX (2 lb/cf) | C55: =Metric!C56 -> 0.034 | D55: 8.8916256 | E55: =Metric!E56 -> 261.5184 | F55: 0.2688 | G55: 7.905882353 | H55: =Metric!H56 -> 7 | I55: =Metric!I56 -> 0.0384 | J55: 1 | K55: 9.1604256 | L55: 269.4242824 | M55: 4.241176471
B56: =Metric!B57 -> Solid PU, n-pentane | C56: =Metric!C57 -> 0.024 | D56: 6.7706496 | E56: =Metric!E57 -> 282.1104 | F56: 0.07632641789 | G56: 3.180267412 | H56: =Metric!H57 -> 7 | I56: =Metric!I57 -> 0.0384 | J56: =IF($C$10="Low",D65,IF($C$10="High",E65,F65)) -> 0.2839524475 | K56: 6.846976018 | L56: 285.2906674 | M56: 6.008333333
B57: =Metric!B58 -> XPS, CO2 | C57: =Metric!C58 -> 0.033 | D57: 6.068044125 | E57: =Metric!E58 -> 183.880125 | F57: 0.0536135879 | G57: 1.624654179 | H57: =Metric!H58 -> 1 | I57: =Metric!I58 -> 0.0594 | J57: =IF($C$10="Low",D68,IF($C$10="High",E68,F68)) -> 0.9025856549 | K57: 6.121657713 | L57: 185.5047792 | M57: 4.36969697
B58: =Metric!B59 -> XPS, HFC-134a | C58: =Metric!C59 -> 0.029 | D58: 5.332523625 | E58: =Metric!E59 -> 183.880125 | F58: 67.37440879 | G58: 2323.255476 | H58: =Metric!H59 -> 1430 | I58: =Metric!I59 -> 0.0522 | J58: =IF($C$10="Low",D69,IF($C$10="High",E69,F69)) -> 0.9025856549 | K58: 72.70693242 | L58: 2507.135601 | M58: 4.972413793
B59: =Metric!B60 -> Spray PU, Water/CO2 | C59: =Metric!C60 -> 0.029 | D59: =E59*C59 -> 12.9594465 | E59: =Metric!E60 -> 446.8774655 | F59: 0.01679078619 | G59: 0.5789926272 | H59: =Metric!H60 -> 1 | I59: =Metric!I60 -> 0.035 | J59: =IF($C$10="Low",D72,IF($C$10="High",E72,F72)) -> 0.4797367482 | K59: 12.97623729 | L59: 447.4564581 | M59: 4.972413793
B60: =Metric!B61 -> Spray PU, HFC-245fa | C60: =Metric!C61 -> 0.024 | D60: =E60*C60 -> 8.3927844 | E60: =Metric!E61 -> 349.69935 | F60: 17.29450977 | G60: 720.6045739 | H60: =Metric!H61 -> 1030 | I60: =Metric!I61 -> 0.035 | J60: =IF($C$10="Low",D73,IF($C$10="High",E73,F73)) -> 0.4797367482 | K60: 25.68729417 | L60: 1070.303924 | M60: =0.1442/C60 -> 6.008333333
A62: Overall Emissions | C62: =Metric!C63 -> Mnfr | D62: =Metric!D63 -> Annual Rate/Full Emissions | H62: GWP by Fuel Type
D63: =Metric!D64 -> Low | E63: =Metric!E64 -> High | F63: =Metric!F64 -> All
D64: 0.002 | E64: 0.005 | F64: 1 | J64: =Metric!J65 -> kgCO2/kWh | AE64: Low
B65: Solid PU, n-pentane | C65: 0.08 | D65: =1-(1-$C65)*(1-D$64)^$C$9 -> 0.1676329274 | E65: =1-(1-$C65)*(1-E$64)^$C$9 -> 0.2839524475 | F65: =1-(1-$C65)*(1-F$64)^$C$9 -> 1 | I65: =Metric!I66 -> Wood | J65: =Metric!J66 -> 0.05 | K65: =Metric!K66 -> from PHPP | AE65: High
I66: =Metric!I67 -> Natural Gas | J66: =Metric!J67 -> 0.232 | K66: =Metric!K67 -> from EIA | AE66: All
D67: 0.0075 | E67: 0.04 | F67: 1 | I67: =Metric!I68 -> LPG | J67: =Metric!J68 -> 0.213 | K67: =Metric!K68 -> from EIA
B68: XPS, CO2 | C68: 0.25 | D68: =1-(1-$C68)*(1-D$67)^$C$9 -> 0.4852610466 | E68: 0.9025856549 | F68: 1 | I68: =Metric!I69 -> Fuel Oil | J68: =Metric!J69 -> 0.25 | K68: =Metric!K69 -> from EIA | AE68: R Value
B69: XPS, HFC-134a | C69: 0.25 | D69: 0.4852610466 | E69: 0.9025856549 | F69: 1 | I69: =Metric!I70 -> Electricity | J69: =Metric!J70 -> 0.606 | K69: =Metric!K70 -> from EIA | AE69: Thickness
D71: 0.011 | E71: 0.011 | F71: 1 | AE71: Pleasure and Pain
B72: Spray PU, Water/CO2 | C72: =AVERAGE(6.4,11.8,11.8,6.4,11.8,9.1)/100 -> 0.0955 | D72: =1-(1-$C72)*(1-D$71)^$C$9 -> 0.4797367482 | E72: 0.4797367482 | F72: 1 | AE72: Sickness and Health
B73: Spray PU, HFC-245fa | C73: =AVERAGE(6.4,11.8,11.8,6.4,11.8,9.1)/100 -> 0.0955 | D73: 0.4797367482 | E73: 0.4797367482 | F73: 1 | AE73: Success and Failure
AE74: Fame and Disrepute
A75: Chart Data
B76: =IF($C$11="Final Rsi", B96,B116) -> Net Impact (kgCO2eq/sfyr)
B77: =IF($C$11="R Value",B97,IF(C11="Thickness",B117,"error: please select chart type from dropdown menu")) -> Whole Assembly R Value (hrsf°F/Btu) | C77: =IF($C$11="R Value",C97,IF($C$11="Thickness",C117,0)) -> 2 | D77: 7 | E77: 12 | F77: 17 | G77: 22 | H77: 27 | I77: 32 | J77: 37 | K77: 42 | L77: 47 | M77: 52 | N77: 57 | O77: 62 | P77: 67 | Q77: 72 | R77: 77 | S77: 82 | T77: 87 | U77: 92 | V77: 97 | W77: 102 | X77: 107 | Y77: 112 | Z77: 117 | AA77: 122 | AB77: 127 | AC77: 132 | AD77: 137 | AE77: =IF($C$11="R Value",AE97,IF($C$11="Thickness",AE117,0)) -> 142 | AF77: 147 | AG77: 152 | AH77: 157 | AI77: 162 | AJ77: 167 | AK77: 172 | AL77: 177 | AM77: 182 | AN77: 187 | AO77: 192 | AP77: 197 | AQ77: 202 | AR77: 207 | AS77: 212 | AT77: 217 | AU77: 222 | AV77: 227 | AW77: 232 | AX77: 237 | AY77: 242 | AZ77: 247 | BA77: 252 | BB77: 257 | BC77: 262 | BD77: 267 | BE77: 272 | BF77: 277 | BG77: 282 | BH77: 287 | BI77: 292 | BJ77: 297 | BK77: 302
B78: =IF($C$11="Final Rsi", B99,B119) -> Cellulose | C78: =IF($C$11="R Value",C99,C119) -> 5.441123503 | D78: 1.554805942 | E78: 0.9072523702 | F78: 0.6407298565 | G78: 0.4954444974 | H78: 0.4040423182 | I78: 0.3412655783 | J78: 0.2955093699 | K78: 0.2606949317 | L78: 0.2333302094 | M78: 0.2112662465 | N78: 0.1931081063 | O78: 0.1779108317 | P78: 0.1650115424 | Q78: 0.1539314914 | R78: 0.1443162816 | S78: 0.1358979543 | T78: 0.1284701504 | U78: 0.1218713716 | V78: 0.1159734181 | W78: 0.1106732273 | X78: 0.1058870008 | Y78: 0.101545904 | Z78: 0.09759286906 | AA78: 0.0939801834 | AB78: 0.09066764831 | AC78: 0.08762115577 | AD78: 0.08481157703 | AE78: =IF($C$11="R Value",AE99,AE119) -> 0.08221388599 | AF78: 0.07980646145 | AG78: 0.07757052711 | AH78: 0.07548969857 | AI78: 0.07354961417 | AJ78: 0.07173763222 | AK78: 0.070042581 | AL78: 0.06845455112 | AM78: 0.06696472214 | AN78: 0.06556521699 | AO78: 0.06424897912 | AP78: 0.06300966838 | AQ78: 0.06184157235 | AR78: 0.06073953055 | AS78: 0.05969886934 | AT78: 0.05871534581 | AU78: 0.05778509932 | AV78: 0.05690460935 | AW78: 0.05607065888 | AX78: 0.05528030238 | AY78: 0.05453083774 | AZ78: 0.05381978165 | BA78: 0.05314484789 | BB78: 0.05250392815 | BC78: 0.05189507506 | BD78: 0.05131648713 | BE78: 0.05076649532 | BF78: 0.0502435511 | BG78: 0.04974621578 | BH78: 0.0492731509 | BI78: 0.04882310971 | BJ78: 0.04839492938 | BK78: 0.04798752411
B79: Rigid Mineral Wool | C79: =IF($C$11="R Value",C100,C120) ->  | AE79: =IF($C$11="R Value",AE100,AE120) -> 
B80: Mineral Wool Batt | C80: =IF($C$11="R Value",C101,C121) ->  | AE80: =IF($C$11="R Value",AE101,AE121) -> 
B81: Fiberglass Batt | C81: =IF($C$11="R Value",C102,C122) ->  | AE81: =IF($C$11="R Value",AE102,AE122) -> 
B82: Loose Fill Fiberglass | C82: =IF($C$11="R Value",C103,C123) ->  | AE82: =IF($C$11="R Value",AE103,AE123) -> 
B83: Dense Pack Blown Fiberglass | C83: =IF($C$11="R Value",C104,C124) ->  | AE83: =IF($C$11="R Value",AE104,AE124) -> 
B84: Fiberboard | C84: =IF($C$11="R Value",C105,C125) ->  | AE84: =IF($C$11="R Value",AE105,AE125) -> 
B85: EPS type I (1 lb/cf) | C85: =IF($C$11="R Value",C106,C126) ->  | AE85: =IF($C$11="R Value",AE106,AE126) -> 
B86: EPS type VII (1.25 lb/cf) | C86: =IF($C$11="R Value",C107,C127) ->  | AE86: =IF($C$11="R Value",AE107,AE127) -> 
B87: EPS type II (1.5 lb/cf) | C87: =IF($C$11="R Value",C108,C128) ->  | AE87: =IF($C$11="R Value",AE108,AE128) -> 
B88: EPS type IX (2 lb/cf) | C88: =IF($C$11="R Value",C109,C129) ->  | AE88: =IF($C$11="R Value",AE109,AE129) -> 
B89: Solid PU, n-pentane | C89: =IF($C$11="R Value",C110,C130) ->  | AE89: =IF($C$11="R Value",AE110,AE130) -> 
B90: XPS, CO2 | C90: =IF($C$11="R Value",C111,C131) ->  | AE90: =IF($C$11="R Value",AE111,AE131) -> 
B91: XPS, HFC-134a | C91: =IF($C$11="R Value",C112,C132) ->  | AE91: =IF($C$11="R Value",AE112,AE132) -> 
B92: Spray PU, Water/CO2 | C92: =IF($C$11="R Value",C113,C133) ->  | AE92: =IF($C$11="R Value",AE113,AE133) -> 
B93: Spray PU, HFC-245fa | C93: =IF($C$11="R Value",C114,C134) ->  | AE93: =IF($C$11="R Value",AE114,AE134) -> 
B96: Net Impact (kgCO2eq/sfyr)
B97: Whole Assembly R Value (hrsf°F/Btu) | C97: =C6 -> 2 | D97: =C97+5 -> 7 | E97: =D97+5 -> 12 | F97: 17 | G97: 22 | H97: 27 | I97: 32 | J97: 37 | K97: 42 | L97: 47 | M97: 52 | N97: 57 | O97: 62 | P97: 67 | Q97: 72 | R97: 77 | S97: 82 | T97: 87 | U97: 92 | V97: 97 | W97: 102 | X97: 107 | Y97: 112 | Z97: 117 | AA97: 122 | AB97: 127 | AC97: 132 | AD97: 137 | AE97: =AD97+5 -> 142 | AF97: 147 | AG97: 152 | AH97: 157 | AI97: 162 | AJ97: 167 | AK97: 172 | AL97: 177 | AM97: 182 | AN97: 187 | AO97: 192 | AP97: 197 | AQ97: 202 | AR97: 207 | AS97: 212 | AT97: 217 | AU97: 222 | AV97: 227 | AW97: 232 | AX97: 237 | AY97: 242 | AZ97: 247 | BA97: 252 | BB97: 257 | BC97: 262 | BD97: 267 | BE97: 272 | BF97: 277 | BG97: 282 | BH97: 287 | BI97: 292 | BJ97: 297 | BK97: 302
B98: Whole Assembly Rsi (m2K/W) | C98: =C97/5.678 -> 0.3522367031 | D98: 1.232828461 | E98: 2.113420218 | F98: 2.994011976 | G98: 3.874603734 | H98: 4.755195491 | I98: 5.635787249 | J98: 6.516379007 | K98: 7.396970764 | L98: 8.277562522 | M98: 9.15815428 | N98: 10.03874604 | O98: 10.91933779 | P98: 11.79992955 | Q98: 12.68052131 | R98: 13.56111307 | S98: 14.44170483 | T98: 15.32229658 | U98: 16.20288834 | V98: 17.0834801 | W98: 17.96407186 | X98: 18.84466361 | Y98: 19.72525537 | Z98: 20.60584713 | AA98: 21.48643889 | AB98: 22.36703064 | AC98: 23.2476224 | AD98: 24.12821416 | AE98: =AE97/5.678 -> 25.00880592 | AF98: 25.88939768 | AG98: 26.76998943 | AH98: 27.65058119 | AI98: 28.53117295 | AJ98: 29.41176471 | AK98: 30.29235646 | AL98: 31.17294822 | AM98: 32.05353998 | AN98: 32.93413174 | AO98: 33.81472349 | AP98: 34.69531525 | AQ98: 35.57590701 | AR98: 36.45649877 | AS98: 37.33709052 | AT98: 38.21768228 | AU98: 39.09827404 | AV98: 39.9788658 | AW98: 40.85945756 | AX98: 41.74004931 | AY98: 42.62064107 | AZ98: 43.50123283 | BA98: 44.38182459 | BB98: 45.26241634 | BC98: 46.1430081 | BD98: 47.02359986 | BE98: 47.90419162 | BF98: 48.78478337 | BG98: 49.66537513 | BH98: 50.54596689 | BI98: 51.42655865 | BJ98: 52.30715041 | BK98: 53.18774216
B99: =B45 -> Cellulose | C99: =IF(LOWER($C17)="x", (1/C$98*$C$5/1.8*24/$C$8*VLOOKUP($C$7,$I$65:$J$69,2,FALSE)/1000+$K45*(C$98-$C$6/5.678)/$C$9)/10.76,"") -> 5.441123503 | D99: 1.554805942 | E99: 0.9072523702 | F99: 0.6407298565 | G99: 0.4954444974 | H99: 0.4040423182 | I99: 0.3412655783 | J99: 0.2955093699 | K99: 0.2606949317 | L99: 0.2333302094 | M99: 0.2112662465 | N99: 0.1931081063 | O99: 0.1779108317 | P99: 0.1650115424 | Q99: 0.1539314914 | R99: 0.1443162816 | S99: 0.1358979543 | T99: 0.1284701504 | U99: 0.1218713716 | V99: 0.1159734181 | W99: 0.1106732273 | X99: 0.1058870008 | Y99: 0.101545904 | Z99: 0.09759286906 | AA99: 0.0939801834 | AB99: 0.09066764831 | AC99: 0.08762115577 | AD99: 0.08481157703 | AE99: 0.08221388599 | AF99: 0.07980646145 | AG99: 0.07757052711 | AH99: 0.07548969857 | AI99: =IF(LOWER($C17)="x", (1/AI$98*$C$5/1.8*24/$C$8*VLOOKUP($C$7,$I$65:$J$69,2,FALSE)/1000+$K45*(AI$98-$C$6/5.678)/$C$9)/10.76,"") -> 0.07354961417 | AJ99: 0.07173763222 | AK99: 0.070042581 | AL99: 0.06845455112 | AM99: 0.06696472214 | AN99: 0.06556521699 | AO99: 0.06424897912 | AP99: 0.06300966838 | AQ99: 0.06184157235 | AR99: 0.06073953055 | AS99: 0.05969886934 | AT99: 0.05871534581 | AU99: 0.05778509932 | AV99: 0.05690460935 | AW99: 0.05607065888 | AX99: 0.05528030238 | AY99: 0.05453083774 | AZ99: 0.05381978165 | BA99: 0.05314484789 | BB99: 0.05250392815 | BC99: 0.05189507506 | BD99: 0.05131648713 | BE99: 0.05076649532 | BF99: 0.0502435511 | BG99: 0.04974621578 | BH99: 0.0492731509 | BI99: 0.04882310971 | BJ99: 0.04839492938 | BK99: 0.04798752411
B100: Rigid Mineral Wool | C100: =IF(LOWER($C18)="x", (1/C$98*$C$5/1.8*24/$C$8*VLOOKUP($C$7,$I$65:$J$69,2,FALSE)/1000+$K46*(C$98-$C$6/5.678)/$C$9)/10.76,"") ->  | D100: =IF(LOWER($C18)="x", (1/D$98*$C$5/1.8*24/$C$8*VLOOKUP($C$7,$I$65:$J$69,2,FALSE)/1000+$K46*(D$98-$C$6/5.678)/$C$9)/10.76,"") ->  | S100: =IF(LOWER($C18)="x", (1/S$98*$C$5/1.8*24/$C$8*VLOOKUP($C$7,$I$65:$J$69,2,FALSE)/1000+$K46*(S$98-$C$6/5.678)/$C$9)/10.76,"") -> 
B101: Mineral Wool Batt | D101: =IF(LOWER($C19)="x", (1/D$98*$C$5/1.8*24/$C$8*VLOOKUP($C$7,$I$65:$J$69,2,FALSE)/1000+$K47*(D$98-$C$6/5.678)/$C$9)/10.76,"") ->  | S101: =IF(LOWER($C19)="x", (1/S$98*$C$5/1.8*24/$C$8*VLOOKUP($C$7,$I$65:$J$69,2,FALSE)/1000+$K47*(S$98-$C$6/5.678)/$C$9)/10.76,"") -> 
B102: Fiberglass Batt | D102: =IF(LOWER($C20)="x", (1/D$98*$C$5/1.8*24/$C$8*VLOOKUP($C$7,$I$65:$J$69,2,FALSE)/1000+$K48*(D$98-$C$6/5.678)/$C$9)/10.76,"") ->  | S102: =IF(LOWER($C20)="x", (1/S$98*$C$5/1.8*24/$C$8*VLOOKUP($C$7,$I$65:$J$69,2,FALSE)/1000+$K48*(S$98-$C$6/5.678)/$C$9)/10.76,"") -> 
B103: Loose Fill Fiberglass | D103: =IF(LOWER($C21)="x", (1/D$98*$C$5/1.8*24/$C$8*VLOOKUP($C$7,$I$65:$J$69,2,FALSE)/1000+$K49*(D$98-$C$6/5.678)/$C$9)/10.76,"") ->  | S103: =IF(LOWER($C21)="x", (1/S$98*$C$5/1.8*24/$C$8*VLOOKUP($C$7,$I$65:$J$69,2,FALSE)/1000+$K49*(S$98-$C$6/5.678)/$C$9)/10.76,"") -> 
B104: Dense Pack Blown Fiberglass | D104: =IF(LOWER($C22)="x", (1/D$98*$C$5/1.8*24/$C$8*VLOOKUP($C$7,$I$65:$J$69,2,FALSE)/1000+$K50*(D$98-$C$6/5.678)/$C$9)/10.76,"") ->  | S104: =IF(LOWER($C22)="x", (1/S$98*$C$5/1.8*24/$C$8*VLOOKUP($C$7,$I$65:$J$69,2,FALSE)/1000+$K50*(S$98-$C$6/5.678)/$C$9)/10.76,"") -> 
B105: Fiberboard | D105: =IF(LOWER($C23)="x", (1/D$98*$C$5/1.8*24/$C$8*VLOOKUP($C$7,$I$65:$J$69,2,FALSE)/1000+$K51*(D$98-$C$6/5.678)/$C$9)/10.76,"") ->  | S105: =IF(LOWER($C23)="x", (1/S$98*$C$5/1.8*24/$C$8*VLOOKUP($C$7,$I$65:$J$69,2,FALSE)/1000+$K51*(S$98-$C$6/5.678)/$C$9)/10.76,"") -> 
B106: EPS type I (1 lb/cf) | D106: =IF(LOWER($C24)="x", (1/D$98*$C$5/1.8*24/$C$8*VLOOKUP($C$7,$I$65:$J$69,2,FALSE)/1000+$K52*(D$98-$C$6/5.678)/$C$9)/10.76,"") ->  | S106: =IF(LOWER($C24)="x", (1/S$98*$C$5/1.8*24/$C$8*VLOOKUP($C$7,$I$65:$J$69,2,FALSE)/1000+$K52*(S$98-$C$6/5.678)/$C$9)/10.76,"") -> 
B107: EPS type VII (1.25 lb/cf) | D107: =IF(LOWER($C25)="x", (1/D$98*$C$5/1.8*24/$C$8*VLOOKUP($C$7,$I$65:$J$69,2,FALSE)/1000+$K53*(D$98-$C$6/5.678)/$C$9)/10.76,"") ->  | S107: =IF(LOWER($C25)="x", (1/S$98*$C$5/1.8*24/$C$8*VLOOKUP($C$7,$I$65:$J$69,2,FALSE)/1000+$K53*(S$98-$C$6/5.678)/$C$9)/10.76,"") -> 
B108: EPS type II (1.5 lb/cf) | D108: =IF(LOWER($C26)="x", (1/D$98*$C$5/1.8*24/$C$8*VLOOKUP($C$7,$I$65:$J$69,2,FALSE)/1000+$K54*(D$98-$C$6/5.678)/$C$9)/10.76,"") ->  | S108: =IF(LOWER($C26)="x", (1/S$98*$C$5/1.8*24/$C$8*VLOOKUP($C$7,$I$65:$J$69,2,FALSE)/1000+$K54*(S$98-$C$6/5.678)/$C$9)/10.76,"") -> 
B109: EPS type IX (2 lb/cf) | D109: =IF(LOWER($C27)="x", (1/D$98*$C$5/1.8*24/$C$8*VLOOKUP($C$7,$I$65:$J$69,2,FALSE)/1000+$K55*(D$98-$C$6/5.678)/$C$9)/10.76,"") ->  | S109: =IF(LOWER($C27)="x", (1/S$98*$C$5/1.8*24/$C$8*VLOOKUP($C$7,$I$65:$J$69,2,FALSE)/1000+$K55*(S$98-$C$6/5.678)/$C$9)/10.76,"") -> 
B110: Solid PU, n-pentane | D110: =IF(LOWER($C28)="x", (1/D$98*$C$5/1.8*24/$C$8*VLOOKUP($C$7,$I$65:$J$69,2,FALSE)/1000+$K56*(D$98-$C$6/5.678)/$C$9)/10.76,"") ->  | S110: =IF(LOWER($C28)="x", (1/S$98*$C$5/1.8*24/$C$8*VLOOKUP($C$7,$I$65:$J$69,2,FALSE)/1000+$K56*(S$98-$C$6/5.678)/$C$9)/10.76,"") -> 
B111: XPS, CO2 | D111: =IF(LOWER($C29)="x", (1/D$98*$C$5/1.8*24/$C$8*VLOOKUP($C$7,$I$65:$J$69,2,FALSE)/1000+$K57*(D$98-$C$6/5.678)/$C$9)/10.76,"") ->  | S111: =IF(LOWER($C29)="x", (1/S$98*$C$5/1.8*24/$C$8*VLOOKUP($C$7,$I$65:$J$69,2,FALSE)/1000+$K57*(S$98-$C$6/5.678)/$C$9)/10.76,"") -> 
B112: XPS, HFC-134a | D112: =IF(LOWER($C30)="x", (1/D$98*$C$5/1.8*24/$C$8*VLOOKUP($C$7,$I$65:$J$69,2,FALSE)/1000+$K58*(D$98-$C$6/5.678)/$C$9)/10.76,"") ->  | S112: =IF(LOWER($C30)="x", (1/S$98*$C$5/1.8*24/$C$8*VLOOKUP($C$7,$I$65:$J$69,2,FALSE)/1000+$K58*(S$98-$C$6/5.678)/$C$9)/10.76,"") -> 
B113: Spray PU, Water/CO2 | D113: =IF(LOWER($C31)="x", (1/D$98*$C$5/1.8*24/$C$8*VLOOKUP($C$7,$I$65:$J$69,2,FALSE)/1000+$K59*(D$98-$C$6/5.678)/$C$9)/10.76,"") ->  | S113: =IF(LOWER($C31)="x", (1/S$98*$C$5/1.8*24/$C$8*VLOOKUP($C$7,$I$65:$J$69,2,FALSE)/1000+$K59*(S$98-$C$6/5.678)/$C$9)/10.76,"") -> 
B114: Spray PU, HFC-245fa | D114: =IF(LOWER($C32)="x", (1/D$98*$C$5/1.8*24/$C$8*VLOOKUP($C$7,$I$65:$J$69,2,FALSE)/1000+$K60*(D$98-$C$6/5.678)/$C$9)/10.76,"") ->  | S114: =IF(LOWER($C32)="x", (1/S$98*$C$5/1.8*24/$C$8*VLOOKUP($C$7,$I$65:$J$69,2,FALSE)/1000+$K60*(S$98-$C$6/5.678)/$C$9)/10.76,"") -> 
B116: Net Impact (kgCO2eq/sfyr)
B117: Added Thickness (inches) | C117: 0 | D117: =C117+1 -> 1 | E117: =D117+1 -> 2 | F117: 3 | G117: 4 | H117: 5 | I117: 6 | J117: 7 | K117: 8 | L117: 9 | M117: 10 | N117: 11 | O117: 12 | P117: 13 | Q117: 14 | R117: 15 | S117: 16 | T117: 17 | U117: 18 | V117: 19 | W117: 20 | X117: 21 | Y117: 22 | Z117: 23 | AA117: 24 | AB117: 25 | AC117: 26 | AD117: 27 | AE117: =AD117+1 -> 28 | AF117: 29 | AG117: 30 | AH117: 31 | AI117: 32 | AJ117: 33 | AK117: 34 | AL117: 35 | AM117: 36 | AN117: 37 | AO117: 38 | AP117: 39 | AQ117: 40 | AR117: 41 | AS117: 42 | AT117: 43 | AU117: 44 | AV117: 45 | AW117: 46 | AX117: 47 | AY117: 48 | AZ117: 49 | BA117: 50 | BB117: 51 | BC117: 52 | BD117: 53 | BE117: 54 | BF117: 55 | BG117: 56 | BH117: 57 | BI117: 58 | BJ117: 59 | BK117: 60
B118: Added Thickness (cm) | C118: =C117*2.54 -> 0 | D118: =D117*2.54 -> 2.54 | E118: 5.08 | F118: 7.62 | G118: 10.16 | H118: 12.7 | I118: 15.24 | J118: 17.78 | K118: 20.32 | L118: 22.86 | M118: =M117*2.54 -> 25.4 | N118: =N117*2.54 -> 27.94 | O118: =O117*2.54 -> 30.48 | P118: =P117*2.54 -> 33.02 | Q118: =Q117*2.54 -> 35.56 | R118: 38.1 | S118: 40.64 | T118: 43.18 | U118: 45.72 | V118: 48.26 | W118: 50.8 | X118: 53.34 | Y118: 55.88 | Z118: 58.42 | AA118: 60.96 | AB118: 63.5 | AC118: 66.04 | AD118: 68.58 | AE118: =AE117*2.54 -> 71.12 | AF118: 73.66 | AG118: 76.2 | AH118: 78.74 | AI118: 81.28 | AJ118: 83.82 | AK118: 86.36 | AL118: 88.9 | AM118: 91.44 | AN118: 93.98 | AO118: 96.52 | AP118: 99.06 | AQ118: 101.6 | AR118: 104.14 | AS118: 106.68 | AT118: 109.22 | AU118: 111.76 | AV118: 114.3 | AW118: 116.84 | AX118: 119.38 | AY118: 121.92 | AZ118: 124.46 | BA118: 127 | BB118: 129.54 | BC118: 132.08 | BD118: 134.62 | BE118: 137.16 | BF118: 139.7 | BG118: 142.24 | BH118: 144.78 | BI118: 147.32 | BJ118: 149.86 | BK118: 152.4
B119: =B45 -> Cellulose | C119: =IF(LOWER($C17)="x", (1/(1/$C45*C$118/100+$C$6/5.678)*$C$5/1.8*24/$C$8*VLOOKUP($C$7,$I$65:$J$69,2,FALSE)/1000+$L45*C$118/100/$C$9)/10.76,"") -> 5.441123503 | D119: 1.909990482 | E119: 1.158478445 | F119: 0.8315324759 | G119: 0.6486539539 | H119: 0.5318397849 | I119: 0.4507890927 | J119: 0.3912739546 | K119: 0.345729928 | L119: 0.3097639665 | M119: 0.2806500818 | N119: 0.2566071006 | O119: 0.2364219687 | P119: 0.2192399719 | Q119: 0.2044415167 | R119: 0.1915664847 | S119: 0.180266026 | T119: 0.1702708422 | U119: 0.1613697332 | V119: 0.1533947315 | W119: 0.1462105788 | X119: 0.1397071332 | Y119: 0.1337937981 | Z119: 0.128395371 | AA119: 0.1234489069 | AB119: 0.1189013186 | AC119: 0.1147075199 | AD119: 0.1108289727 | AE119: 0.1072325403 | AF119: 0.1038895725 | AG119: 0.1007751718 | AH119: 0.09786759809 | AI119: =IF(LOWER($C17)="x", (1/(1/$C45*AI$118/100+$C$6/5.678)*$C$5/1.8*24/$C$8*VLOOKUP($C$7,$I$65:$J$69,2,FALSE)/1000+$L45*AI$118/100/$C$9)/10.76,"") -> 0.0951477836 | AJ119: 0.09259893452 | AK119: 0.09020620189 | AL119: 0.08795640793 | AM119: 0.08583781737 | AN119: 0.08383994536 | AO119: 0.08195339524 | AP119: 0.0801697209 | AQ119: 0.07848130959 | AR119: 0.07688128161 | AS119: 0.0753634041 | AT119: 0.07392201685 | AU119: 0.07255196792 | AV119: 0.07124855791 | AW119: 0.07000749131 | AX119: 0.06882483402 | AY119: 0.06769697614 | AZ119: 0.06662059922 | BA119: 0.06559264746 | BB119: 0.06461030222 | BC119: 0.06367095943 | BD119: 0.06277220957 | BE119: 0.06191181986 | BF119: 0.06108771829 | BG119: 0.06029797944 | BH119: 0.05954081176 | BI119: 0.05881454609 | BJ119: 0.05811762542 | BK119: 0.05744859561
B120: Rigid Mineral Wool | C120: =IF(LOWER($C18)="x", (1/(1/$C46*C$118/100+$C$6/5.678)*$C$5/1.8*24/$C$8*VLOOKUP($C$7,$I$65:$J$69,2,FALSE)/1000+$L46*C$118/100/$C$9)/10.76,"") ->  | D120: =IF(LOWER($C18)="x", (1/(1/$C46*D$118/100+$C$6/5.678)*$C$5/1.8*24/$C$8*VLOOKUP($C$7,$I$65:$J$69,2,FALSE)/1000+$L46*D$118/100/$C$9)/10.76,"") ->  | S120: =IF(LOWER($C18)="x", (1/(1/$C46*S$118/100+$C$6/5.678)*$C$5/1.8*24/$C$8*VLOOKUP($C$7,$I$65:$J$69,2,FALSE)/1000+$L46*S$118/100/$C$9)/10.76,"") -> 
B121: Mineral Wool Batt | D121: =IF(LOWER($C19)="x", (1/(1/$C47*D$118/100+$C$6/5.678)*$C$5/1.8*24/$C$8*VLOOKUP($C$7,$I$65:$J$69,2,FALSE)/1000+$L47*D$118/100/$C$9)/10.76,"") ->  | S121: =IF(LOWER($C19)="x", (1/(1/$C47*S$118/100+$C$6/5.678)*$C$5/1.8*24/$C$8*VLOOKUP($C$7,$I$65:$J$69,2,FALSE)/1000+$L47*S$118/100/$C$9)/10.76,"") -> 
B122: Fiberglass Batt | D122: =IF(LOWER($C20)="x", (1/(1/$C48*D$118/100+$C$6/5.678)*$C$5/1.8*24/$C$8*VLOOKUP($C$7,$I$65:$J$69,2,FALSE)/1000+$L48*D$118/100/$C$9)/10.76,"") ->  | S122: =IF(LOWER($C20)="x", (1/(1/$C48*S$118/100+$C$6/5.678)*$C$5/1.8*24/$C$8*VLOOKUP($C$7,$I$65:$J$69,2,FALSE)/1000+$L48*S$118/100/$C$9)/10.76,"") -> 
B123: Loose Fill Fiberglass | D123: =IF(LOWER($C21)="x", (1/(1/$C49*D$118/100+$C$6/5.678)*$C$5/1.8*24/$C$8*VLOOKUP($C$7,$I$65:$J$69,2,FALSE)/1000+$L49*D$118/100/$C$9)/10.76,"") ->  | S123: =IF(LOWER($C21)="x", (1/(1/$C49*S$118/100+$C$6/5.678)*$C$5/1.8*24/$C$8*VLOOKUP($C$7,$I$65:$J$69,2,FALSE)/1000+$L49*S$118/100/$C$9)/10.76,"") -> 
B124: Dense Pack Blown Fiberglass | D124: =IF(LOWER($C22)="x", (1/(1/$C50*D$118/100+$C$6/5.678)*$C$5/1.8*24/$C$8*VLOOKUP($C$7,$I$65:$J$69,2,FALSE)/1000+$L50*D$118/100/$C$9)/10.76,"") ->  | S124: =IF(LOWER($C22)="x", (1/(1/$C50*S$118/100+$C$6/5.678)*$C$5/1.8*24/$C$8*VLOOKUP($C$7,$I$65:$J$69,2,FALSE)/1000+$L50*S$118/100/$C$9)/10.76,"") -> 
B125: Fiberboard | D125: =IF(LOWER($C23)="x", (1/(1/$C51*D$118/100+$C$6/5.678)*$C$5/1.8*24/$C$8*VLOOKUP($C$7,$I$65:$J$69,2,FALSE)/1000+$L51*D$118/100/$C$9)/10.76,"") ->  | S125: =IF(LOWER($C23)="x", (1/(1/$C51*S$118/100+$C$6/5.678)*$C$5/1.8*24/$C$8*VLOOKUP($C$7,$I$65:$J$69,2,FALSE)/1000+$L51*S$118/100/$C$9)/10.76,"") -> 
B126: EPS type I (1 lb/cf) | D126: =IF(LOWER($C24)="x", (1/(1/$C52*D$118/100+$C$6/5.678)*$C$5/1.8*24/$C$8*VLOOKUP($C$7,$I$65:$J$69,2,FALSE)/1000+$L52*D$118/100/$C$9)/10.76,"") ->  | S126: =IF(LOWER($C24)="x", (1/(1/$C52*S$118/100+$C$6/5.678)*$C$5/1.8*24/$C$8*VLOOKUP($C$7,$I$65:$J$69,2,FALSE)/1000+$L52*S$118/100/$C$9)/10.76,"") -> 
B127: EPS type VII (1.25 lb/cf) | D127: =IF(LOWER($C25)="x", (1/(1/$C53*D$118/100+$C$6/5.678)*$C$5/1.8*24/$C$8*VLOOKUP($C$7,$I$65:$J$69,2,FALSE)/1000+$L53*D$118/100/$C$9)/10.76,"") ->  | S127: =IF(LOWER($C25)="x", (1/(1/$C53*S$118/100+$C$6/5.678)*$C$5/1.8*24/$C$8*VLOOKUP($C$7,$I$65:$J$69,2,FALSE)/1000+$L53*S$118/100/$C$9)/10.76,"") -> 
B128: EPS type II (1.5 lb/cf) | D128: =IF(LOWER($C26)="x", (1/(1/$C54*D$118/100+$C$6/5.678)*$C$5/1.8*24/$C$8*VLOOKUP($C$7,$I$65:$J$69,2,FALSE)/1000+$L54*D$118/100/$C$9)/10.76,"") ->  | S128: =IF(LOWER($C26)="x", (1/(1/$C54*S$118/100+$C$6/5.678)*$C$5/1.8*24/$C$8*VLOOKUP($C$7,$I$65:$J$69,2,FALSE)/1000+$L54*S$118/100/$C$9)/10.76,"") -> 
B129: EPS type IX (2 lb/cf) | D129: =IF(LOWER($C27)="x", (1/(1/$C55*D$118/100+$C$6/5.678)*$C$5/1.8*24/$C$8*VLOOKUP($C$7,$I$65:$J$69,2,FALSE)/1000+$L55*D$118/100/$C$9)/10.76,"") ->  | S129: =IF(LOWER($C27)="x", (1/(1/$C55*S$118/100+$C$6/5.678)*$C$5/1.8*24/$C$8*VLOOKUP($C$7,$I$65:$J$69,2,FALSE)/1000+$L55*S$118/100/$C$9)/10.76,"") -> 
B130: Solid PU, n-pentane | D130: =IF(LOWER($C28)="x", (1/(1/$C56*D$118/100+$C$6/5.678)*$C$5/1.8*24/$C$8*VLOOKUP($C$7,$I$65:$J$69,2,FALSE)/1000+$L56*D$118/100/$C$9)/10.76,"") ->  | S130: =IF(LOWER($C28)="x", (1/(1/$C56*S$118/100+$C$6/5.678)*$C$5/1.8*24/$C$8*VLOOKUP($C$7,$I$65:$J$69,2,FALSE)/1000+$L56*S$118/100/$C$9)/10.76,"") -> 
B131: XPS, CO2 | D131: =IF(LOWER($C29)="x", (1/(1/$C57*D$118/100+$C$6/5.678)*$C$5/1.8*24/$C$8*VLOOKUP($C$7,$I$65:$J$69,2,FALSE)/1000+$L57*D$118/100/$C$9)/10.76,"") ->  | S131: =IF(LOWER($C29)="x", (1/(1/$C57*S$118/100+$C$6/5.678)*$C$5/1.8*24/$C$8*VLOOKUP($C$7,$I$65:$J$69,2,FALSE)/1000+$L57*S$118/100/$C$9)/10.76,"") -> 
B132: XPS, HFC-134a | D132: =IF(LOWER($C30)="x", (1/(1/$C58*D$118/100+$C$6/5.678)*$C$5/1.8*24/$C$8*VLOOKUP($C$7,$I$65:$J$69,2,FALSE)/1000+$L58*D$118/100/$C$9)/10.76,"") ->  | S132: =IF(LOWER($C30)="x", (1/(1/$C58*S$118/100+$C$6/5.678)*$C$5/1.8*24/$C$8*VLOOKUP($C$7,$I$65:$J$69,2,FALSE)/1000+$L58*S$118/100/$C$9)/10.76,"") -> 
B133: Spray PU, Water/CO2 | D133: =IF(LOWER($C31)="x", (1/(1/$C59*D$118/100+$C$6/5.678)*$C$5/1.8*24/$C$8*VLOOKUP($C$7,$I$65:$J$69,2,FALSE)/1000+$L59*D$118/100/$C$9)/10.76,"") ->  | S133: =IF(LOWER($C31)="x", (1/(1/$C59*S$118/100+$C$6/5.678)*$C$5/1.8*24/$C$8*VLOOKUP($C$7,$I$65:$J$69,2,FALSE)/1000+$L59*S$118/100/$C$9)/10.76,"") -> 
B134: Spray PU, HFC-245fa | D134: =IF(LOWER($C32)="x", (1/(1/$C60*D$118/100+$C$6/5.678)*$C$5/1.8*24/$C$8*VLOOKUP($C$7,$I$65:$J$69,2,FALSE)/1000+$L60*D$118/100/$C$9)/10.76,"") ->  | S134: =IF(LOWER($C32)="x", (1/(1/$C60*S$118/100+$C$6/5.678)*$C$5/1.8*24/$C$8*VLOOKUP($C$7,$I$65:$J$69,2,FALSE)/1000+$L60*S$118/100/$C$9)/10.76,"") -> 

Sheet Metric
A1: Total Climatic Impact of Insulation
B4: Inputs
B5: Climate HDD (Kd) | C5: 4000
B6: Reference Rsi | C6: 0.18
B7: Heating Fuel | C7: Natural Gas
B8: Heating Efficiency/COP | C8: 0.9
B9: Life Span of Insulation (Years) | C9: 50
B10: BA Release Rate | C10: High
B11: Chart Type | C11: R Value
B12: R Value Chart x-axis maxiumum | C12: 10
B13: Thickness Chart x-axis maximum | C13: 30
B14: Chart y-axis maximum | C14: 20
B16: Displayed in Graph (mark with "x")
B17: =B46 -> Cellulose | C17: x
B18: =B47 -> Rigid Mineral Wool
B19: Mineral Wool Batt
B20: Fiberglass Batt
B21: Loose Fill Fiberglass
B22: Dense Pack Blown Fiberglass
B23: Fiberboard
B24: EPS type I (1 lb/cf)
B25: EPS type VII (1.25 lb/cf)
B26: EPS type II (1.5 lb/cf)
B27: EPS type IX (2 lb/cf)
B28: Solid PU, n-pentane
B29: XPS, CO2
B30: XPS, HFC-134a
B31: Spray PU, Water/CO2
B32: Spray PU, HFC-245fa
B37: =#REF!&" "&B5&" "&B7&" "&B8&" "&B9&" "&B10 -> 
B38: =TEXT(#REF!,"0.00")&" "&TEXT(C5,"0,000")&" "&C7&" "&TEXT(C8,"0.00")&" "&TEXT(C9,"00")&" "&C10 -> 
A44: Material Data | C44: Conductivity | D44: Mnfr CO2 | E44: Mnfr CO2 | F44: BA CO2 | G44: BA CO2 | H44: BA GWP | I44: BA Mass | J44: Overall | K44: Total CO2 | L44: Total CO2
C45: (W/mK) | D45: (kg/m2RSI) | E45: (kg/m3) | F45: =D45 -> (kg/m2RSI) | G45: =E45 -> (kg/m3) | H45: - | I45: (kg/m2RSI) | J45: Emissions | K45: =D45 -> (kg/m2RSI) | L45: =E45 -> (kg/m3)
B46: Cellulose | C46: 0.039 | D46: =E46*C46 -> 0.121718025 | E46: =(36+61)/2*64.35/1000 -> 3.120975 | F46: 0 | G46: =F46/C46 -> 0 | H46: 0 | I46: 0 | J46: 0 | K46: =D46+F46 -> 0.121718025 | L46: =E46+G46 -> 3.120975
B47: Rigid Mineral Wool | C47: 0.037 | D47: =E47*C47 -> 6.5142792 | E47: =152*18*64.35/1000 -> 176.0616 | F47: 0 | G47: 0 | H47: 0 | I47: 0 | J47: 0 | K47: 6.5142792 | L47: 176.0616
B48: Mineral Wool Batt | C48: 0.035 | D48: 1.297296 | E48: =32*18*64.35/1000 -> 37.0656 | F48: 0 | G48: 0 | H48: 0 | I48: 0 | J48: 0 | K48: 1.297296 | L48: 37.0656
B49: Fiberglass Batt | C49: 0.044 | D49: 0.483999516 | E49: =7.7*22.2*64.35/1000 -> 10.999989 | F49: 0 | G49: 0 | H49: 0 | I49: 0 | J49: 0 | K49: 0.483999516 | L49: 10.999989
B50: Loose Fill Fiberglass | C50: 0.063 | D50: 0.692999307 | E50: =7.7*22.2*64.35/1000 -> 10.999989 | F50: 0 | G50: 0 | H50: 0 | I50: 0 | J50: 0 | K50: 0.692999307 | L50: 10.999989
B51: Dense Pack Blown Fiberglass | C51: 0.034 | D51: 1.398855744 | E51: =28.8*22.2*64.35/1000 -> 41.142816 | F51: 0 | G51: 0 | H51: 0 | I51: 0 | J51: 0 | K51: 1.398855744 | L51: 41.142816
B52: Fiberboard | C52: 0.055 | D52: =E52*C52 -> 11.11147537 | E52: =(11.2+11.8)/2*273*64.35/1000 -> 202.026825 | F52: 0 | G52: 0 | H52: 0 | I52: 0 | J52: 0 | K52: 11.11147537 | L52: 202.026825
B53: EPS type I (1 lb/cf) | C53: 0.04 | D53: 5.230368 | E53: =16*127*64.35/1000 -> 130.7592 | F53: =H53*I53*J53 -> 0.2688 | G53: 6.72 | H53: =H57 -> 7 | I53: =I57 -> 0.0384 | J53: 1 | K53: 5.499168 | L53: 137.4792
B54: EPS type VII (1.25 lb/cf) | C54: 0.038 | D54: 6.211062 | E54: =20*127*64.35/1000 -> 163.449 | F54: 0.2688 | G54: 7.073684211 | H54: =H57 -> 7 | I54: =I57 -> 0.0384 | J54: 1 | K54: 6.479862 | L54: 170.5226842
B55: EPS type II (1.5 lb/cf) | C55: 0.036 | D55: 7.0609968 | E55: =24*127*64.35/1000 -> 196.1388 | F55: 0.2688 | G55: 7.466666667 | H55: =H57 -> 7 | I55: =I57 -> 0.0384 | J55: 1 | K55: 7.3297968 | L55: 203.6054667
B56: EPS type IX (2 lb/cf) | C56: 0.034 | D56: 8.8916256 | E56: =32*127*64.35/1000 -> 261.5184 | F56: 0.2688 | G56: 7.905882353 | H56: =H57 -> 7 | I56: =I57 -> 0.0384 | J56: 1 | K56: 9.1604256 | L56: 269.4242824
B57: Solid PU, n-pentane | C57: 0.024 | D57: 6.7706496 | E57: =D57/C57 -> 282.1104 | F57: 0.07632641789 | G57: 3.180267412 | H57: 7 | I57: 0.0384 | J57: =IF($C$10="Low",D66,IF($C$10="High",E66,F66)) -> 0.2839524475 | K57: 6.846976018 | L57: 285.2906674
B58: XPS, CO2 | C58: 0.033 | D58: 6.068044125 | E58: =D58/C58 -> 183.880125 | F58: 0.0536135879 | G58: 1.624654179 | H58: 1 | I58: 0.0594 | J58: =IF($C$10="Low",D69,IF($C$10="High",E69,F69)) -> 0.9025856549 | K58: 6.121657713 | L58: 185.5047792
B59: XPS, HFC-134a | C59: 0.029 | D59: 5.332523625 | E59: =D59/C59 -> 183.880125 | F59: 67.37440879 | G59: 2323.255476 | H59: 1430 | I59: 0.0522 | J59: =IF($C$10="Low",D70,IF($C$10="High",E70,F70)) -> 0.9025856549 | K59: 72.70693242 | L59: 2507.135601
B60: Spray PU, Water/CO2 | C60: 0.029 | D60: 12.9594465 | E60: =D60/C60 -> 446.8774655 | F60: 0.01679078619 | G60: 0.5789926272 | H60: 1 | I60: 0.035 | J60: =IF($C$10="Low",D73,IF($C$10="High",E73,F73)) -> 0.4797367482 | K60: 12.97623729 | L60: 447.4564581
B61: Spray PU, HFC-245fa | C61: 0.024 | D61: 8.3927844 | E61: =D61/C61 -> 349.69935 | F61: 17.29450977 | G61: 720.6045739 | H61: 1030 | I61: 0.035 | J61: =IF($C$10="Low",D74,IF($C$10="High",E74,F74)) -> 0.4797367482 | K61: 25.68729417 | L61: 1070.303924
A63: Overall Emissions | C63: Mnfr | D63: Annual Rate/Full Emissions | H63: GWP by Fuel Type
D64: Low | E64: High | F64: All
D65: 0.002 | E65: 0.005 | F65: 1 | J65: kgCO2/kWh
B66: Solid PU, n-pentane | C66: 0.08 | D66: =1-(1-$C66)*(1-D$65)^$C$9 -> 0.1676329274 | E66: =1-(1-$C66)*(1-E$65)^$C$9 -> 0.2839524475 | F66: =1-(1-$C66)*(1-F$65)^$C$9 -> 1 | I66: Wood | J66: 0.05 | K66: from PHPP | AE66: Low
I67: Natural Gas | J67: 0.232 | K67: from EIA | AE67: High
D68: 0.0075 | E68: 0.04 | F68: 1 | I68: LPG | J68: 0.213 | K68: from EIA | AE68: All
B69: XPS, CO2 | C69: 0.25 | D69: =1-(1-$C69)*(1-D$68)^$C$9 -> 0.4852610466 | E69: 0.9025856549 | F69: 1 | I69: Fuel Oil | J69: 0.25 | K69: from EIA
B70: XPS, HFC-134a | C70: 0.25 | D70: 0.4852610466 | E70: 0.9025856549 | F70: 1 | I70: Electricity | J70: 0.606 | K70: from EIA | AE70: R Value
AE71: Thickness
D72: 0.011 | E72: 0.011 | F72: 1
B73: Spray PU, Water/CO2 | C73: =AVERAGE(6.4,11.8,11.8,6.4,11.8,9.1)/100 -> 0.0955 | D73: =1-(1-$C73)*(1-D$72)^$C$9 -> 0.4797367482 | E73: 0.4797367482 | F73: 1 | AE73: Greed
B74: Spray PU, HFC-245fa | C74: =AVERAGE(6.4,11.8,11.8,6.4,11.8,9.1)/100 -> 0.0955 | D74: 0.4797367482 | E74: 0.4797367482 | F74: 1 | AE74: Hatred
AE75: Delusion
A76: Chart Data
B77: =IF($C$11="Final Rsi",B97, B116) -> Net Impact (kgCO2eq/m2a) | C77: =IF($C$11="R Value",C97, C116) -> Whole Assembly Rsi (m2K/W)
C78: 0.18 | D78: =IF($C$11="R Value",D98, D117) -> 1.18 | E78: 2.18 | F78: 3.18 | G78: 4.18 | H78: 5.18 | I78: 6.18 | J78: 7.18 | K78: 8.18 | L78: 9.18 | M78: 10.18 | N78: 11.18 | O78: 12.18 | P78: 13.18 | Q78: 14.18 | R78: 15.18 | S78: 16.18 | T78: 17.18 | U78: 18.18 | V78: 19.18 | W78: 20.18 | X78: 21.18 | Y78: 22.18 | Z78: 23.18 | AA78: 24.18 | AB78: 25.18 | AC78: 26.18 | AD78: 27.18 | AE78: =IF($C$11="R Value",AE98, AE117) -> 28.18 | AF78: 29.18 | AG78: 30.18 | AH78: 31.18 | AI78: 32.18 | AJ78: 33.18 | AK78: 34.18 | AL78: 35.18 | AM78: 36.18 | AN78: 37.18 | AO78: 38.18 | AP78: 39.18 | AQ78: 40.18 | AR78: 41.18 | AS78: 42.18 | AT78: 43.18 | AU78: 44.18 | AV78: 45.18 | AW78: 46.18 | AX78: 47.18 | AY78: 48.18 | AZ78: 49.18 | BA78: 50.18 | BB78: 51.18 | BC78: 52.18 | BD78: 53.18 | BE78: 54.18 | BF78: 55.18 | BG78: 56.18 | BH78: 57.18 | BI78: 58.18 | BJ78: 59.18 | BK78: 60.18
B79: =IF($C$11="Final Rsi",B99, B118) -> Cellulose | C79: 137.4814815 | D79: =IF($C$11="R Value",D99, D118) -> 20.97418577 | E79: 11.35655068 | F79: 7.789273731 | G79: 5.929992625 | H79: 4.78952058 | I79: 4.018921158 | J79: 3.46365148 | K79: 3.044739758 | L79: 2.717624568 | M79: 2.455253887 | N79: 2.240254412 | O79: 2.060958358 | P79: 1.909238998 | Q79: 1.779262053 | R79: 1.666730603 | S79: 1.568410007 | T79: 1.481818742 | U79: 1.405021276 | V79: 1.336485731 | W79: 1.274983873 | X79: 1.21951943 | Y79: 1.169275799 | Z79: 1.123577292 | AA79: 1.081859998 | AB79: 1.043649587 | AC79: 1.008544201 | AD79: 0.9762011208 | AE79: =IF($C$11="R Value",AE99, AE118) -> 0.9463262766 | AF79: 0.9186659085 | AG79: 0.8929998894 | AH79: 0.8691363322 | AI79: 0.8469072012 | AJ79: 0.8261647183 | AK79: 0.8067783994 | AL79: 0.7886325967 | AM79: 0.7716244481 | AN79: 0.7556621579 | AO79: 0.7406635478 | AP79: 0.7265548289 | AQ79: 0.7132695585 | AR79: 0.7007477476 | AS79: 0.6889350961 | AT79: 0.677782334 | AU79: 0.6672446521 | AV79: 0.6572812085 | AW79: 0.6478546988 | AX79: 0.6389309814 | AY79: 0.6304787491 | AZ79: 0.6224692413 | BA79: 0.6148759897 | BB79: 0.6076745947 | BC79: 0.6008425273 | BD79: 0.5943589528 | BE79: 0.5882045749 | BF79: 0.582361496 | BG79: 0.5768130927 | BH79: 0.5715439047 | BI79: 0.5665395344 | BJ79: 0.5617865575 | BK79: 0.557272442
B80: Rigid Mineral Wool | D80: =IF($C$11="R Value",D100, D119) ->  | AE80: =IF($C$11="R Value",AE100, AE119) -> 
B81: Mineral Wool Batt | D81: =IF($C$11="R Value",D101, D120) ->  | AE81: =IF($C$11="R Value",AE101, AE120) -> 
B82: Fiberglass Batt | D82: =IF($C$11="R Value",D102, D121) ->  | AE82: =IF($C$11="R Value",AE102, AE121) -> 
B83: Loose Fill Fiberglass | D83: =IF($C$11="R Value",D103, D122) ->  | AE83: =IF($C$11="R Value",AE103, AE122) -> 
B84: Dense Pack Blown Fiberglass | D84: =IF($C$11="R Value",D104, D123) ->  | AE84: =IF($C$11="R Value",AE104, AE123) -> 
B85: Fiberboard | D85: =IF($C$11="R Value",D105, D124) ->  | AE85: =IF($C$11="R Value",AE105, AE124) -> 
B86: EPS type I (1 lb/cf) | D86: =IF($C$11="R Value",D106, D125) ->  | AE86: =IF($C$11="R Value",AE106, AE125) -> 
B87: EPS type VII (1.25 lb/cf) | D87: =IF($C$11="R Value",D107, D126) ->  | AE87: =IF($C$11="R Value",AE107, AE126) -> 
B88: EPS type II (1.5 lb/cf) | D88: =IF($C$11="R Value",D108, D127) ->  | AE88: =IF($C$11="R Value",AE108, AE127) -> 
B89: EPS type IX (2 lb/cf) | D89: =IF($C$11="R Value",D109, D128) ->  | AE89: =IF($C$11="R Value",AE109, AE128) -> 
B90: Solid PU, n-pentane | D90: =IF($C$11="R Value",D110, D129) ->  | AE90: =IF($C$11="R Value",AE110, AE129) -> 
B91: XPS, CO2 | D91: =IF($C$11="R Value",D111, D130) ->  | AE91: =IF($C$11="R Value",AE111, AE130) -> 
B92: XPS, HFC-134a | D92: =IF($C$11="R Value",D112, D131) ->  | AE92: =IF($C$11="R Value",AE112, AE131) -> 
B93: Spray PU, Water/CO2 | D93: =IF($C$11="R Value",D113, D132) ->  | AE93: =IF($C$11="R Value",AE113, AE132) -> 
B94: Spray PU, HFC-245fa | D94: =IF($C$11="R Value",D114, D133) ->  | AE94: =IF($C$11="R Value",AE114, AE133) -> 
B97: Net Impact (kgCO2eq/m2a) | C97: Whole Assembly Rsi (m2K/W)
C98: =C6 -> 0.18 | D98: =C98+1 -> 1.18 | E98: =D98+1 -> 2.18 | F98: 3.18 | G98: 4.18 | H98: 5.18 | I98: 6.18 | J98: 7.18 | K98: 8.18 | L98: 9.18 | M98: 10.18 | N98: 11.18 | O98: 12.18 | P98: 13.18 | Q98: 14.18 | R98: 15.18 | S98: 16.18 | T98: 17.18 | U98: 18.18 | V98: 19.18 | W98: 20.18 | X98: 21.18 | Y98: 22.18 | Z98: 23.18 | AA98: 24.18 | AB98: 25.18 | AC98: 26.18 | AD98: 27.18 | AE98: =AD98+1 -> 28.18 | AF98: 29.18 | AG98: 30.18 | AH98: 31.18 | AI98: 32.18 | AJ98: 33.18 | AK98: 34.18 | AL98: 35.18 | AM98: 36.18 | AN98: 37.18 | AO98: 38.18 | AP98: 39.18 | AQ98: 40.18 | AR98: 41.18 | AS98: 42.18 | AT98: 43.18 | AU98: 44.18 | AV98: 45.18 | AW98: 46.18 | AX98: 47.18 | AY98: 48.18 | AZ98: 49.18 | BA98: 50.18 | BB98: 51.18 | BC98: 52.18 | BD98: 53.18 | BE98: 54.18 | BF98: 55.18 | BG98: 56.18 | BH98: 57.18 | BI98: 58.18 | BJ98: 59.18 | BK98: 60.18
B99: =B46 -> Cellulose | C99: =IF(LOWER($C17)="x", 1/C$98*$C$5*24/$C$8*VLOOKUP($C$7,$I$66:$J$70,2,FALSE)/1000+$K46*(C$98-$C$6)/$C$9,"") -> 137.4814815 | D99: =IF(LOWER($C17)="x", 1/D$98*$C$5*24/$C$8*VLOOKUP($C$7,$I$66:$J$70,2,FALSE)/1000+$K46*(D$98-$C$6)/$C$9,"") -> 20.97418577 | E99: 11.35655068 | F99: 7.789273731 | G99: 5.929992625 | H99: 4.78952058 | I99: 4.018921158 | J99: 3.46365148 | K99: 3.044739758 | L99: 2.717624568 | M99: 2.455253887 | N99: 2.240254412 | O99: 2.060958358 | P99: 1.909238998 | Q99: 1.779262053 | R99: 1.666730603 | S99: 1.568410007 | T99: 1.481818742 | U99: 1.405021276 | V99: 1.336485731 | W99: 1.274983873 | X99: 1.21951943 | Y99: 1.169275799 | Z99: 1.123577292 | AA99: 1.081859998 | AB99: 1.043649587 | AC99: 1.008544201 | AD99: 0.9762011208 | AE99: 0.9463262766 | AF99: 0.9186659085 | AG99: 0.8929998894 | AH99: 0.8691363322 | AI99: 0.8469072012 | AJ99: 0.8261647183 | AK99: 0.8067783994 | AL99: 0.7886325967 | AM99: 0.7716244481 | AN99: 0.7556621579 | AO99: 0.7406635478 | AP99: 0.7265548289 | AQ99: 0.7132695585 | AR99: 0.7007477476 | AS99: 0.6889350961 | AT99: 0.677782334 | AU99: 0.6672446521 | AV99: 0.6572812085 | AW99: 0.6478546988 | AX99: 0.6389309814 | AY99: 0.6304787491 | AZ99: 0.6224692413 | BA99: 0.6148759897 | BB99: 0.6076745947 | BC99: 0.6008425273 | BD99: 0.5943589528 | BE99: 0.5882045749 | BF99: 0.582361496 | BG99: 0.5768130927 | BH99: 0.5715439047 | BI99: 0.5665395344 | BJ99: 0.5617865575 | BK99: 0.557272442
B100: Rigid Mineral Wool | D100: =IF(LOWER($C18)="x", 1/D$98*$C$5*24/$C$8*VLOOKUP($C$7,$I$66:$J$70,2,FALSE)/1000+$K47*(D$98-$C$6)/$C$9,"") -> 
B101: Mineral Wool Batt
B102: Fiberglass Batt
B103: Loose Fill Fiberglass | AH103: =IF(LOWER($C21)="x", 1/AH$98*$C$5*24/$C$8*VLOOKUP($C$7,$I$66:$J$70,2,FALSE)/1000+$K50*(AH$98-$C$6)/$C$9,"") -> 
B104: Dense Pack Blown Fiberglass
B105: Fiberboard
B106: EPS type I (1 lb/cf)
B107: EPS type VII (1.25 lb/cf) | AW107: =IF(LOWER($C25)="x", 1/AW$98*$C$5*24/$C$8*VLOOKUP($C$7,$I$66:$J$70,2,FALSE)/1000+$K54*(AW$98-$C$6)/$C$9,"") -> 
B108: EPS type II (1.5 lb/cf)
B109: EPS type IX (2 lb/cf)
B110: Solid PU, n-pentane
B111: XPS, CO2
B112: XPS, HFC-134a | D112: =IF(LOWER($C30)="x", 1/D$98*$C$5*24/$C$8*VLOOKUP($C$7,$I$66:$J$70,2,FALSE)/1000+$K59*(D$98-$C$6)/$C$9,"") -> 
B113: Spray PU, Water/CO2
B114: Spray PU, HFC-245fa
B116: Net Impact (kgCO2eq/m2a) | C116: Added Thickness (cm)
C117: 0 | D117: =C117+2.5 -> 2.5 | E117: =D117+2.5 -> 5 | F117: 7.5 | G117: 10 | H117: 12.5 | I117: 15 | J117: 17.5 | K117: 20 | L117: 22.5 | M117: 25 | N117: 27.5 | O117: 30 | P117: 32.5 | Q117: 35 | R117: 37.5 | S117: 40 | T117: 42.5 | U117: 45 | V117: 47.5 | W117: 50 | X117: 52.5 | Y117: 55 | Z117: 57.5 | AA117: 60 | AB117: 62.5 | AC117: 65 | AD117: 67.5 | AE117: =AD117+2.5 -> 70 | AF117: 72.5 | AG117: 75 | AH117: 77.5 | AI117: 80 | AJ117: 82.5 | AK117: 85 | AL117: 87.5 | AM117: 90 | AN117: 92.5 | AO117: 95 | AP117: 97.5 | AQ117: 100 | AR117: 102.5 | AS117: 105 | AT117: 107.5 | AU117: 110 | AV117: 112.5 | AW117: 115 | AX117: 117.5 | AY117: 120 | AZ117: 122.5 | BA117: 125 | BB117: 127.5 | BC117: =BB117+2.5 -> 130 | BD117: 132.5 | BE117: 135 | BF117: 137.5 | BG117: 140 | BH117: 142.5 | BI117: 145 | BJ117: 147.5 | BK117: 150
B118: =B46 -> Cellulose | C118: =IF(LOWER($C17)="x", 1/(1/$C46*C$117/100+$C$6)*$C$5*24/$C$8*VLOOKUP($C$7,$I$66:$J$70,2,FALSE)/1000+$L46*C$117/100/$C$9,"") -> 137.4814815 | D118: =IF(LOWER($C17)="x", 1/(1/$C46*D$117/100+$C$6)*$C$5*24/$C$8*VLOOKUP($C$7,$I$66:$J$70,2,FALSE)/1000+$L46*D$117/100/$C$9,"") -> 30.14272226 | E118: 16.92911186 | F118: 11.77156759 | G118: 9.024369403 | H118: 7.318209952 | I118: 6.155841081 | J118: 5.313197888 | K118: 4.674448928 | L118: 4.173685798 | M118: 3.770643393 | N118: 3.439334003 | O118: 3.162234416 | P118: 2.92709918 | Q118: 2.725112748 | R118: 2.549767189 | S118: 2.396153491 | T118: 2.260498937 | U118: 2.139856313 | V118: 2.031889833 | W118: 1.934724404 | X118: 1.846837378 | Y118: 1.766979463 | Z118: 1.694116016 | AA118: 1.627382839 | AB118: 1.566052471 | AC118: 1.509508172 | AD118: 1.457223629 | AE118: 1.408746972 | AF118: 1.36368806 | AG118: 1.321708287 | AH118: 1.282512347 | AI118: 1.245841526 | AJ118: 1.211468204 | AK118: 1.179191321 | AL118: 1.148832613 | AM118: 1.120233469 | AN118: 1.093252297 | AO118: 1.067762298 | AP118: 1.043649587 | AQ118: 1.020811588 | AR118: 0.9991556624 | AS118: 0.9785979384 | AT118: 0.9590622941 | AU118: 0.940479484 | AV118: 0.9227863798 | AW118: 0.9059253093 | AX118: 0.8898434793 | AY118: 0.8744924706 | AZ118: 0.8598277939 | BA118: 0.8458084994 | BB118: 0.8323968311 | BC118: 0.8195579221 | BD118: 0.8072595229 | BE118: 0.7954717604 | BF118: 0.7841669234 | BG118: 0.7733192697 | BH118: 0.7629048551 | BI118: 0.7529013787 | BJ118: 0.7432880443 | BK118: 0.7340454356
B119: Rigid Mineral Wool | D119: =IF(LOWER($C18)="x", 1/(1/$C47*D$117/100+$C$6)*$C$5*24/$C$8*VLOOKUP($C$7,$I$66:$J$70,2,FALSE)/1000+$L47*D$117/100/$C$9,"") -> 
B120: Mineral Wool Batt
B121: Fiberglass Batt
B122: Loose Fill Fiberglass | AH122: =IF(LOWER($C21)="x", 1/(1/$C50*AH$117/100+$C$6)*$C$5*24/$C$8*VLOOKUP($C$7,$I$66:$J$70,2,FALSE)/1000+$L50*AH$117/100/$C$9,"") -> 
B123: Dense Pack Blown Fiberglass
B124: Fiberboard
B125: EPS type I (1 lb/cf)
B126: EPS type VII (1.25 lb/cf) | AW126: =IF(LOWER($C25)="x", 1/(1/$C54*AW$117/100+$C$6)*$C$5*24/$C$8*VLOOKUP($C$7,$I$66:$J$70,2,FALSE)/1000+$L54*AW$117/100/$C$9,"") -> 
B127: EPS type II (1.5 lb/cf)
B128: EPS type IX (2 lb/cf)
B129: Solid PU, n-pentane
B130: XPS, CO2
B131: XPS, HFC-134a | D131: =IF(LOWER($C30)="x", 1/(1/$C59*D$117/100+$C$6)*$C$5*24/$C$8*VLOOKUP($C$7,$I$66:$J$70,2,FALSE)/1000+$L59*D$117/100/$C$9,"") -> 
B132: Spray PU, Water/CO2
B133: Spray PU, HFC-245fa
